[Event "VIII Lorca Open-A 2019"]
[Site "Lorca"]
[Date "2019.12.29"]
[Round "7.9"]
[White "Plazuelo Pascual, Juan"]
[Black "Pogorelov, Ruslan"]
[Result "1/2-1/2"]
[ECO "E32"]
[WhiteElo "2433"]
[BlackElo "2377"]
[Annotator "NA"]
[PlyCount "51"]
[EventDate "2019.12.26"]
[EventType "swiss"]
[EventCountry "ESP"]
[SourceTitle "playchess.com"]
[Source "ChessBase"]
[SourceQuality "1"]
[TimeControl "5400+30"]

1. d4 {[%emt 0:00:00]} Nf6 {[%emt 0:03:20]} 2. c4 {[%emt 0:00:00]} e6 {[%emt 0:00:08]} 3. Nc3 {[%emt 0:00:08]} Bb4 {[%emt 0:00:13]} 4. Qc2 {[%emt 0:00:08]} O-O {[%emt 0:00:32]} 5. e4 {[%emt 0:00:09]} d5 {[%emt 0:01:08]} 6. e5 {[%emt 0:00:36]} Ne4 {[%emt 0:00:12]} 7. Bd3 {[%emt 0:00:20]} c5 {[%emt 0:01:51]} 8. Nge2 {[%emt 0:01:27]} cxd4 {[%emt 0:03:00]} 9. Nxd4 {[%emt 1:31:42]} dxc4 {[%emt 0:06:53]} 10. Bxe4 {[%emt 0:00:00]} Qxd4 {[%emt 0:00:10]} 11. Bf4 {[%emt 0:00:00]} f5 {[%emt 1:18:03]} 12. exf6 {[%emt 0:00:00]} Qxf6 {[%emt 0:00:00]} 13. Bxh7+ {[%emt 0:00:00]} Kh8 {[%emt 0:00:00]} 14. Be3 {[%emt 0:00:00]} Nc6 {[%emt 0:00:00]} 15. O-O {[%emt 0:00:00]} Bxc3 {[%emt 0:00:00]} 16. bxc3 {[%emt 0:00:00]} e5 {[%emt 0:00:00]} 17. Rab1 {[%emt 0:00:00]} b6 {[%emt 0:00:00]} 18. Be4 {[%emt 0:00:00]} Bf5 {[%emt 0:00:00]} 19. Rfd1 {[%emt 0:00:00]} g6 {[%emt 0:00:00]} 20. Bxf5 Qxf5 {[%emt 0:00:00]} 21. Qe2 {[%emt 0:00:00]} Rac8 {[%emt 0:00:00]} 22. Qxc4 {[%emt 0:00:00]} Nd4 {[%emt 0:00:00]} 23. Qf1 {[%emt 0:00:00]} Nc2 {[%emt 0:00:00]} 24. Qd3 {[%emt 0:00:00]} Qxd3 {[%emt 0:00:00]} 25. Rxd3 {[%emt 0:00:00]} e4 {[%emt 0:00:00]} 26. Rd6 {[%emt 0:00:00]} 1/2-1/2

[Event "VIII Lorca Open-A 2019"]
[Site "Lorca"]
[Date "2019.12.29"]
[Round "7.10"]
[White "Lopez Martinez, Josep Manuel"]
[Black "Barbero Sendic, Alejandro"]
[Result "1-0"]
[ECO "E90"]
[WhiteElo "2561"]
[BlackElo "2336"]
[Annotator "ChessBase"]
[PlyCount "63"]
[EventDate "2019.12.26"]
[EventType "swiss"]
[EventCountry "ESP"]
[SourceTitle "playchess.com"]
[Source "ChessBase"]
[SourceQuality "1"]
[TimeControl "5400+30"]

1. d4 {[%emt 0:09:23]} Nf6 {[%emt 0:00:00]} 2. c4 {[%emt 0:00:21]} e6 {[%emt 0:00:01]} 3. Nf3 {[%emt 0:00:57]} c5 {[%emt 0:00:23]} 4. d5 {[%emt 0:00:24]} d6 {[%emt 0:00:32]} 5. Nc3 {[%emt 0:00:30]} g6 {[%emt 0:00:13]} 6. e4 {[%emt 0:00:43]} Bg7 {[%emt 0:00:16]} 7. h3 {[%emt 0:01:45]} O-O {[%emt 0:00:11]} 8. Be3 {[%emt 0:01:01]} Re8 {[%emt 0:05:49]} 9. Bd3 {[%emt 0:10:00]} Na6 {[%emt 0:00:49]} 10. O-O {[%emt 0:00:32]} Nc7 {[%emt 0:00:11]} 11. a4 {[%emt 0:02:41]} e5 {[%emt 0:03:46]} 12. Qd2 {[%emt 0:03:19]} Na6 {[%emt 0:03:35]} 13. Rae1 {[%emt 0:02:37]} Nh5 {[%emt 0:03:29]} 14. g4 {[%emt 0:01:26]} Nf4 {[%emt 0:11:36]} 15. Bxf4 {[%emt 0:00:40]} exf4 {[%emt 0:00:06]} 16. Qxf4 {[%emt 0:00:29]} Nb4 {[%emt 0:22:51]} 17. Bb1 {[%emt 0:01:21]} Re5 {[%emt 0:08:08]} 18. Qg3 {[%emt 0:13:39]} g5 {[%emt 0:03:32]} 19. Nxe5 {[%emt 0:00:39]} Bxe5 {[%emt 0:00:16]} 20. f4 {[%emt 0:00:15]} gxf4 {[%emt 0:00:35]} 21. Rxf4 {[%emt 0:00:06]} Qg5 {[%emt 0:06:52]} 22. Ref1 {[%emt 0:00:17]} h5 {[%emt 0:03:30]} 23. h4 {[%emt 0:00:19]} Qg7 {[%emt 0:03:22]} 24. g5 {[%emt 0:02:01]} Bg4 {[%emt 0:00:19]} 25. Kg2 {[%emt 0:01:36]} Rf8 {[%emt 0:00:52]} 26. Qe3 {[%emt 0:06:14]} f6 {[%emt 0:04:20]} 27. Rf5 {[%emt 0:03:02]} Kh7 {[%emt 0:03:00]} 28. Kh1 {[%emt 0:00:40]} Bxf5 {[%emt 0:00:42]} 29. exf5 {[%emt 0:00:18]} Kg8 {[%emt 0:01:53]} 30. Ne4 {[%emt 0:02:13]} Bd4 {[%emt 0:00:17]} 31. Qf3 {[%emt 0:00:28]} fxg5 {[%emt 0:00:53]} 32. hxg5 {[%emt 0:00:28]} 1-0

[Event "VIII Lorca Open-A 2019"]
[Site "Lorca"]
[Date "2019.12.29"]
[Round "7.11"]
[White "Espineira Gonzalez, Diego"]
[Black "Sosa, Tomas"]
[Result "0-1"]
[ECO "C84"]
[WhiteElo "2331"]
[BlackElo "2520"]
[Annotator "ChessBase"]
[PlyCount "74"]
[EventDate "2019.12.26"]
[EventType "swiss"]
[EventCountry "ESP"]
[SourceTitle "playchess.com"]
[Source "ChessBase"]
[SourceQuality "1"]
[TimeControl "5400+30"]

1. e4 {[%emt 1:30:30]} e5 {[%emt 1:30:30]} 2. Nf3 {[%emt 0:00:30]} Nc6 {[%emt 0:00:30]} 3. Bb5 {[%emt 0:00:30]} a6 {[%emt 0:00:30]} 4. Ba4 {[%emt 0:00:30]} Nf6 {[%emt 0:00:30]} 5. O-O {[%emt 0:00:30]} Be7 {[%emt 0:00:30]} 6. d3 {[%emt 0:00:30]} d6 {[%emt 0:00:30]} 7. c3 {[%emt 0:00:30]} O-O {[%emt 0:00:30]} 8. Re1 {[%emt 0:00:30]} b5 {[%emt 0:00:30]} 9. Bc2 {[%emt 0:00:30]} Re8 {[%emt 0:00:30]} 10. h3 {[%emt 0:00:30]} Bf8 {[%emt 0:00:30]} 11. Bg5 {[%emt 0:00:30]} h6 {[%emt 0:00:30]} 12. Bh4 {[%emt 0:00:30]} g6 {[%emt 0:00:30]} 13. a4 {[%emt 0:00:30]} Rb8 {[%emt 0:00:30]} 14. axb5 {[%emt 0:00:30]} axb5 {[%emt 0:00:30]} 15. Nbd2 {[%emt 0:00:30]} Bg7 {[%emt 0:00:30]} 16. Nf1 {[%emt 0:00:30]} Bb7 {[%emt 0:00:30]} 17. Ne3 {[%emt 0:00:30]} Qd7 {[%emt 0:00:30]} 18. Qd2 {[%emt 0:00:30]} Kh7 {[%emt 0:00:30]} 19. b4 {[%emt 0:00:30]} Ra8 {[%emt 0:00:30]} 20. Bb3 {[%emt 0:00:30]} Rxa1 {[%emt 0:00:30]} 21. Rxa1 {[%emt 0:00:30]} Nh5 {[%emt 0:00:30]} 22. c4 {[%emt 0:00:30]} Nd4 {[%emt 0:00:30]} 23. Bd1 {[%emt 0:00:30]} bxc4 {[%emt 0:00:30]} 24. Nxc4 {[%emt 0:00:30]} Nxf3+ {[%emt 0:00:30]} 25. Bxf3 {[%emt 0:00:30]} Nf4 {[%emt 0:00:30]} 26. Ra7 {[%emt 0:00:30]} Rb8 {[%emt 0:00:30]} 27. d4 {[%emt 0:00:30]} Qb5 {[%emt 0:00:30]} 28. dxe5 {[%emt 0:00:30]} Qxc4 {[%emt 0:00:30]} 29. Qxf4 {[%emt 0:00:30]} Bxe5 {[%emt 0:00:30]} 30. Be2 {[%emt 0:00:30]} Qb3 {[%emt 0:00:30]} 31. Qc1 {[%emt 0:00:30]} Bxe4 {[%emt 0:00:30]} 32. Qxc7 {[%emt 0:00:30]} Rxb4 {[%emt 0:00:30]} 33. Bg3 {[%emt 0:00:30]} Bxg3 {[%emt 0:00:30]} 34. fxg3 {[%emt 0:00:30]} Qe3+ {[%emt 0:00:30]} 35. Kh2 {[%emt 0:00:30]} Bd5 {[%emt 0:00:30]} 36. Qxd6 {[%emt 0:00:30]} Rb1 {[%emt 0:00:30]} 37. g4 {[%emt 0:00:30]} Qg1+ {[%emt 0:00:30]} 0-1

[Event "VIII Lorca Open-A 2019"]
[Site "Lorca"]
[Date "2019.12.29"]
[Round "7.12"]
[White "Holm, Kristian Stuvik"]
[Black "Camarena Jimenez, Rufino"]
[Result "1/2-1/2"]
[ECO "E68"]
[WhiteElo "2489"]
[BlackElo "2317"]
[Annotator "ChessBase"]
[PlyCount "45"]
[EventDate "2019.12.26"]
[EventType "swiss"]
[EventCountry "ESP"]
[SourceTitle "playchess.com"]
[Source "ChessBase"]
[SourceQuality "1"]
[TimeControl "5400+30"]

1. d4 {[%emt 0:00:33]} Nf6 {[%emt 0:00:00]} 2. c4 {[%emt 0:00:04]} g6 {[%emt 0:00:00]} 3. g3 {[%emt 0:00:52]} Bg7 {[%emt 0:00:09]} 4. Bg2 {[%emt 0:00:05]} O-O {[%emt 0:00:33]} 5. Nc3 {[%emt 0:00:24]} d6 {[%emt 0:00:24]} 6. Nf3 {[%emt 0:00:06]} Nbd7 {[%emt 0:00:13]} 7. O-O {[%emt 0:00:24]} e5 {[%emt 0:00:14]} 8. e4 {[%emt 0:00:09]} Re8 {[%emt 0:00:33]} 9. Be3 {[%emt 0:08:03]} exd4 {[%emt 0:01:52]} 10. Nxd4 {[%emt 0:00:17]} Nc5 {[%emt 0:00:20]} 11. f3 {[%emt 0:01:14]} a5 {[%emt 0:03:00]} 12. b3 {[%emt 0:04:47]} c6 {[%emt 0:05:03]} 13. Qd2 {[%emt 0:02:11]} Nfd7 {[%emt 0:04:29]} 14. Rad1 {[%emt 0:02:10]} Qe7 {[%emt 0:02:53]} 15. Nde2 {[%emt 0:07:30]} Bf8 {[%emt 0:15:56]} 16. Rfe1 {[%emt 0:19:40]} Ne5 {[%emt 0:08:28]} 17. Nc1 {[%emt 0:09:54]} h5 {[%emt 0:04:11]} 18. Qf2 {[%emt 0:03:15]} Bg7 {[%emt 0:02:43]} 19. Qd2 {[%emt 0:01:46]} Qf6 {[%emt 0:10:13]} 20. f4 {[%emt 0:11:44]} Nxc4 {[%emt 0:38:46]} 21. e5 {[%emt 0:25:22]} dxe5 {[%emt 0:00:30]} 22. bxc4 {[%emt 0:00:30]} exf4 {[%emt 0:00:30]} 23. Bxc5 {[%emt 0:00:30]} 1/2-1/2

[Event "VIII Lorca Open-A 2019"]
[Site "Lorca"]
[Date "2019.12.29"]
[Round "7.13"]
[White "Gascon Del Nogal, Jose Rafael"]
[Black "Kiselev, Pavel"]
[Result "1/2-1/2"]
[ECO "B84"]
[WhiteElo "2475"]
[BlackElo "2303"]
[Annotator "ChessBase"]
[PlyCount "102"]
[EventDate "2019.12.26"]
[EventType "swiss"]
[EventCountry "ESP"]
[SourceTitle "playchess.com"]
[Source "ChessBase"]
[SourceQuality "1"]
[TimeControl "5400+30"]

1. e4 {[%emt 0:09:33]} c5 {[%emt 0:00:00]} 2. Nf3 {[%emt 0:00:08]} e6 {[%emt 0:00:00]} 3. d4 {[%emt 0:00:15]} cxd4 {[%emt 0:00:00]} 4. Nxd4 {[%emt 0:00:06]} Nc6 {[%emt 0:00:04]} 5. Nc3 {[%emt 0:00:04]} Qc7 {[%emt 0:00:13]} 6. Be3 {[%emt 0:00:04]} Nf6 {[%emt 0:00:10]} 7. f4 {[%emt 0:00:19]} d6 {[%emt 0:00:05]} 8. Be2 {[%emt 0:00:29]} Be7 {[%emt 0:00:07]} 9. Qd2 {[%emt 0:00:07]} a6 {[%emt 0:00:12]} 10. O-O-O {[%emt 0:00:33]} O-O {[%emt 0:08:18]} 11. g4 {[%emt 0:02:33]} Nxd4 {[%emt 0:05:50]} 12. Bxd4 {[%emt 0:00:47]} e5 {[%emt 0:01:21]} 13. Bf2 {[%emt 0:01:21]} b5 {[%emt 0:00:51]} 14. g5 {[%emt 0:00:20]} b4 {[%emt 0:00:27]} 15. gxf6 {[%emt 0:00:13]} bxc3 {[%emt 0:00:11]} 16. Qxc3 {[%emt 0:00:06]} Qxc3 {[%emt 0:01:19]} 17. bxc3 {[%emt 0:00:06]} Bxf6 {[%emt 0:00:59]} 18. Rxd6 {[%emt 0:00:34]} Be7 {[%emt 0:05:33]} 19. fxe5 {[%emt 0:00:37]} Bb7 {[%emt 0:04:44]} 20. Bd3 {[%emt 0:06:02]} Bxd6 {[%emt 0:03:45]} 21. exd6 {[%emt 0:00:06]} Rfd8 {[%emt 0:04:18]} 22. Bg3 {[%emt 0:01:26]} f5 {[%emt 0:00:20]} 23. Re1 {[%emt 0:01:25]} Bxe4 {[%emt 1:02:43]} 24. Bxe4 {[%emt 0:00:50]} fxe4 {[%emt 0:00:00]} 25. Rxe4 {[%emt 0:00:14]} Rac8 {[%emt 0:00:00]} 26. Re7 {[%emt 0:00:52]} Rc6 {[%emt 0:00:00]} 27. c4 {[%emt 0:06:43]} Kf8 {[%emt 0:00:00]} 28. Be5 {[%emt 0:01:07]} Rdxd6 {[%emt 0:00:00]} 29. Bxd6 {[%emt 1:07:30]} Rxd6 {[%emt 0:00:00]} 30. Re4 {[%emt 0:00:00]} Kf7 {[%emt 0:00:00]} 31. Kb2 {[%emt 0:00:00]} Re6 {[%emt 0:00:00]} 32. Rd4 {[%emt 0:00:00]} Ke7 {[%emt 0:00:00]} 33. Kc3 {[%emt 0:00:00]} Rd6 {[%emt 0:00:00]} 34. c5 {[%emt 0:00:00]} Rxd4 {[%emt 0:00:00]} 35. Kxd4 {[%emt 0:00:00]} Ke6 {[%emt 0:00:00]} 36. Ke4 {[%emt 0:00:00]} a5 {[%emt 0:00:00]} 37. c6 {[%emt 0:00:00]} Kd6 {[%emt 0:00:00]} 38. Kf5 {[%emt 0:00:00]} Kxc6 {[%emt 0:00:31]} 39. Ke6 {[%emt 0:00:00]} h5 {[%emt 0:02:56]} 40. Kf7 {[%emt 0:00:00]} Kb5 {[%emt 0:00:27]} 41. Kxg7 {[%emt 0:00:00]} Kb4 {[%emt 0:00:20]} 42. Kg6 {[%emt 0:00:00]} a4 {[%emt 0:00:16]} 43. Kxh5 {[%emt 0:00:00]} a3 {[%emt 0:01:37]} 44. h4 {[%emt 0:00:00]} Kc3 {[%emt 0:00:02]} 45. Kg4 {[%emt 0:00:00]} Kxc2 {[%emt 0:00:26]} 46. h5 {[%emt 0:00:00]} Kb1 {[%emt 0:00:01]} 47. h6 {[%emt 0:00:00]} Kxa2 {[%emt 0:00:03]} 48. h7 {[%emt 0:00:04]} Kb1 {[%emt 0:00:03]} 49. h8=B {[%emt 0:01:28]} a2 {[%emt 0:00:06]} 50. Kf3 {[%emt 0:00:04]} a1=N {[%emt 0:00:04]} 51. Bxa1 {[%emt 0:00:06]} Kxa1 {[%emt 0:07:08]} 1/2-1/2

[Event "VIII Lorca Open-A 2019"]
[Site "Lorca"]
[Date "2019.12.29"]
[Round "7.14"]
[White "Rodriguez Melendez, Juan Humbert"]
[Black "Peng, Li Min"]
[Result "1/2-1/2"]
[ECO "E01"]
[WhiteElo "2242"]
[BlackElo "2451"]
[Annotator "ChessBase"]
[PlyCount "86"]
[EventDate "2019.12.26"]
[EventType "swiss"]
[EventCountry "ESP"]
[SourceTitle "playchess.com"]
[Source "ChessBase"]
[SourceQuality "1"]
[TimeControl "5400+30"]

1. d4 {[%emt 1:30:30]} Nf6 {[%emt 1:30:30]} 2. c4 {[%emt 0:00:30]} e6 {[%emt 0:00:30]} 3. g3 {[%emt 0:00:30]} c5 {[%emt 0:00:30]} 4. Nf3 {[%emt 0:00:30]} cxd4 {[%emt 0:00:30]} 5. Nxd4 {[%emt 0:00:30]} d5 {[%emt 0:00:30]} 6. Bg2 {[%emt 0:00:30]} e5 {[%emt 0:00:30]} 7. Nf3 {[%emt 0:00:30]} d4 {[%emt 0:00:30]} 8. O-O {[%emt 0:00:30]} Nc6 {[%emt 0:00:30]} 9. e3 {[%emt 0:00:30]} Be7 {[%emt 0:00:30]} 10. exd4 {[%emt 0:00:30]} exd4 {[%emt 0:00:30]} 11. Nbd2 {[%emt 0:00:30]} O-O {[%emt 0:00:30]} 12. Nb3 {[%emt 0:00:30]} Be6 {[%emt 0:00:30]} 13. Nfxd4 {[%emt 0:00:30]} Bxc4 {[%emt 0:00:30]} 14. Re1 {[%emt 0:00:30]} Bb4 {[%emt 0:00:30]} 15. Bd2 {[%emt 0:00:30]} Qb6 {[%emt 0:00:30]} 16. Nxc6 {[%emt 0:00:30]} bxc6 {[%emt 0:00:30]} 17. Bxb4 {[%emt 0:00:30]} Qxb4 {[%emt 0:00:30]} 18. Qd2 {[%emt 0:00:30]} Rab8 {[%emt 0:00:30]} 19. Qxb4 {[%emt 0:00:30]} Rxb4 {[%emt 0:00:30]} 20. Na5 {[%emt 0:00:30]} Be6 {[%emt 0:00:30]} 21. b3 {[%emt 0:00:30]} c5 {[%emt 0:00:30]} 22. Nc6 {[%emt 0:00:30]} Rb6 {[%emt 0:00:30]} 23. Rec1 {[%emt 0:00:30]} c4 {[%emt 0:00:30]} 24. bxc4 {[%emt 0:00:30]} Rb2 {[%emt 0:00:30]} 25. h3 {[%emt 0:00:30]} Nd7 {[%emt 0:00:30]} 26. c5 {[%emt 0:00:30]} f6 {[%emt 0:00:30]} 27. Nxa7 {[%emt 0:00:30]} Ne5 {[%emt 0:00:30]} 28. Rc3 {[%emt 0:00:30]} Rf7 {[%emt 0:00:30]} 29. Nc6 {[%emt 0:00:30]} Nxc6 {[%emt 0:00:30]} 30. Bxc6 {[%emt 0:00:30]} Rc7 {[%emt 0:00:30]} 31. Bg2 {[%emt 0:00:30]} Rxa2 {[%emt 0:00:30]} 32. Rxa2 {[%emt 0:00:30]} Bxa2 {[%emt 0:00:30]} 33. Kf1 {[%emt 0:00:30]} Kf7 {[%emt 0:00:30]} 34. Ke2 {[%emt 0:00:30]} Ke6 {[%emt 0:00:30]} 35. h4 {[%emt 0:00:30]} h6 {[%emt 0:00:30]} 36. Kd2 {[%emt 0:00:30]} g5 {[%emt 0:00:30]} 37. hxg5 {[%emt 0:00:30]} hxg5 {[%emt 0:00:30]} 38. Kc2 {[%emt 0:00:30]} Ke5 {[%emt 0:00:30]} 39. Kb2 {[%emt 0:00:30]} Bd5 {[%emt 0:00:30]} 40. Bxd5 {[%emt 0:00:30]} Kxd5 41. Rf3 {[%emt 0:00:30]} Ke6 {[%emt 0:01:00]} 42. Rc3 {[%emt 0:00:30]} Kd5 {[%emt 0:00:30]} 43. Rf3 {[%emt 0:00:30]} Ke5 {[%emt 0:00:30]} 1/2-1/2

[Event "VIII Lorca Open-A 2019"]
[Site "Lorca"]
[Date "2019.12.29"]
[Round "7.15"]
[White "Hernandez Leon, Alberto"]
[Black "Raja Harshit"]
[Result "0-1"]
[ECO "E03"]
[WhiteElo "2277"]
[BlackElo "2447"]
[Annotator "NA"]
[PlyCount "38"]
[EventDate "2019.12.26"]
[EventType "swiss"]
[EventCountry "ESP"]
[SourceTitle "playchess.com"]
[Source "ChessBase"]
[SourceQuality "1"]
[TimeControl "5400+30"]

1. d4 {[%emt 1:30:30]} Nf6 {[%emt 1:30:30]} 2. c4 {[%emt 0:00:30]} e6 {[%emt 0:00:30]} 3. Nf3 {[%emt 0:00:30]} d5 {[%emt 0:00:30]} 4. g3 {[%emt 0:00:30]} Be7 {[%emt 0:00:30]} 5. Bg2 {[%emt 0:00:30]} O-O {[%emt 0:00:30]} 6. O-O {[%emt 0:00:30]} dxc4 {[%emt 0:00:30]} 7. Qc2 {[%emt 0:00:30]} b6 {[%emt 0:00:30]} 8. Qxc4 {[%emt 0:00:30]} Bb7 {[%emt 0:00:30]} 9. Nc3 {[%emt 0:00:30]} c5 {[%emt 0:00:30]} 10. Rd1 {[%emt 0:00:30]} Nbd7 {[%emt 0:00:30]} 11. Bg5 {[%emt 0:00:30]} Rc8 {[%emt 0:00:30]} 12. Rac1 {[%emt 0:00:30]} Qe8 {[%emt 0:00:30]} 13. Ne5 {[%emt 0:00:30]} Bxg2 {[%emt 0:00:30]} 14. Kxg2 {[%emt 0:00:30]} cxd4 {[%emt 0:00:30]} 15. Qxd4 {[%emt 0:00:30]} Bc5 {[%emt 0:00:30]} 16. Qf4 {[%emt 0:00:30]} Nxe5 {[%emt 0:00:30]} 17. Qxe5 {[%emt 0:00:30]} Ng4 {[%emt 0:00:30]} 18. Qf4 {[%emt 0:00:30]} Nxf2 {[%emt 0:00:30]} 19. Rf1 {[%emt 0:00:30]} f6 {[%emt 0:00:30]} 0-1

[Event "VIII Lorca Open-A 2019"]
[Site "Lorca"]
[Date "2019.12.29"]
[Round "7.16"]
[White "Alonso Garcia, Aaron"]
[Black "Plaskett, H James"]
[Result "0-1"]
[ECO "B42"]
[WhiteElo "2258"]
[BlackElo "2419"]
[Annotator "ChessBase"]
[PlyCount "50"]
[EventDate "2019.12.26"]
[EventType "swiss"]
[EventCountry "ESP"]
[SourceTitle "playchess.com"]
[Source "ChessBase"]
[SourceQuality "1"]
[TimeControl "5400+30"]

1. e4 {[%emt 0:00:00]} c5 {[%emt 0:00:22]} 2. Nf3 {[%emt 0:00:06]} e6 3. d4 cxd4 {[%emt 0:00:30]} 4. Nxd4 {[%emt 0:00:17]} Nf6 {[%emt 0:00:37]} 5. Bd3 {[%emt 0:01:43]} d6 {[%emt 0:02:19]} 6. O-O {[%emt 0:01:23]} a6 {[%emt 0:01:02]} 7. c4 {[%emt 0:00:47]} g6 {[%emt 0:03:25]} 8. Nc3 {[%emt 0:05:08]} Bg7 {[%emt 0:02:04]} 9. Be3 {[%emt 0:00:48]} O-O {[%emt 0:00:13]} 10. h3 {[%emt 0:07:21]} b6 {[%emt 0:02:24]} 11. f4 {[%emt 0:04:06]} Bb7 {[%emt 0:02:48]} 12. Rc1 {[%emt 0:04:24]} Nbd7 {[%emt 0:03:15]} 13. b4 {[%emt 0:13:08]} Rc8 {[%emt 0:09:07]} 14. Nb3 {[%emt 0:08:40]} Rc7 {[%emt 0:09:26]} 15. Qe2 {[%emt 0:13:55]} Nh5 {[%emt 0:10:39]} 16. Qf2 {[%emt 0:04:28]} b5 {[%emt 0:06:47]} 17. cxb5 {[%emt 0:00:30]} Rxc3 {[%emt 0:00:30]} 18. bxa6 {[%emt 0:00:30]} Rxd3 {[%emt 0:00:30]} 19. axb7 {[%emt 0:00:30]} Rxb3 {[%emt 0:00:30]} 20. Rc8 {[%emt 0:00:30]} Rxb4 {[%emt 0:00:30]} 21. Rxd8 {[%emt 0:00:30]} Rxd8 {[%emt 0:00:30]} 22. Qd2 {[%emt 0:10:28]} Rxb7 {[%emt 0:07:14]} 23. Rc1 {[%emt 0:00:30]} Bf8 {[%emt 0:00:30]} 24. Qd4 {[%emt 0:00:30]} Rbb8 {[%emt 0:00:30]} 25. Qd2 {[%emt 0:02:58]} Nhf6 {[%emt 0:07:31]} 0-1

[Event "VIII Lorca Open-A 2019"]
[Site "Lorca"]
[Date "2019.12.30"]
[Round "8.1"]
[White "Bernadskiy, Vitaliy"]
[Black "Marin, Mihail"]
[Result "1/2-1/2"]
[ECO "C83"]
[WhiteElo "2593"]
[BlackElo "2496"]
[Annotator "ChessBase"]
[PlyCount "77"]
[EventDate "2019.12.26"]
[EventType "swiss"]
[EventCountry "ESP"]
[SourceTitle "playchess.com"]
[Source "ChessBase"]
[SourceQuality "1"]
[TimeControl "5400+30"]

1. e4 {[%emt 1:30:30]} e5 {[%emt 1:30:30]} 2. Nf3 {[%emt 0:00:30]} Nc6 {[%emt 0:00:30]} 3. Bb5 {[%emt 0:00:30]} a6 {[%emt 0:00:30]} 4. Ba4 {[%emt 0:00:30]} Nf6 {[%emt 0:00:30]} 5. O-O {[%emt 0:00:30]} Nxe4 {[%emt 0:00:30]} 6. d4 {[%emt 0:00:30]} b5 {[%emt 0:00:30]} 7. Bb3 {[%emt 0:00:30]} d5 {[%emt 0:00:30]} 8. dxe5 {[%emt 0:00:30]} Be6 {[%emt 0:00:30]} 9. Nbd2 {[%emt 0:00:30]} Nc5 {[%emt 0:00:30]} 10. c3 {[%emt 0:00:30]} Be7 {[%emt 0:00:30]} 11. Bc2 {[%emt 0:00:30]} Bg4 {[%emt 0:00:30]} 12. h3 {[%emt 0:00:30]} Bh5 {[%emt 0:00:30]} 13. Re1 {[%emt 0:00:30]} Qd7 {[%emt 0:00:30]} 14. Nb3 {[%emt 0:00:30]} Ne6 {[%emt 0:00:30]} 15. g4 {[%emt 0:00:30]} Bg6 {[%emt 0:00:30]} 16. Bf5 {[%emt 0:00:30]} Ncd8 {[%emt 0:00:30]} 17. Be3 {[%emt 0:00:30]} a5 {[%emt 0:00:30]} 18. Qc2 {[%emt 0:00:30]} a4 {[%emt 0:00:30]} 19. Nbd4 {[%emt 0:00:30]} c5 {[%emt 0:00:30]} 20. Nxe6 {[%emt 0:00:30]} Nxe6 {[%emt 0:00:30]} 21. h4 {[%emt 0:00:30]} Qc6 {[%emt 0:00:30]} 22. Bg5 {[%emt 0:00:30]} d4 {[%emt 0:00:30]} 23. Re4 {[%emt 0:00:30]} h5 {[%emt 0:00:30]} 24. Bxg6 {[%emt 0:00:30]} fxg6 {[%emt 0:00:30]} 25. Bxe7 {[%emt 0:00:30]} Kxe7 {[%emt 0:00:30]} 26. cxd4 {[%emt 0:00:30]} hxg4 {[%emt 0:00:30]} 27. d5 {[%emt 0:00:30]} Qxd5 {[%emt 0:00:30]} 28. Rd1 {[%emt 0:00:30]} Qb7 {[%emt 0:00:30]} 29. Ng5 {[%emt 0:00:30]} Nxg5 {[%emt 0:00:30]} 30. hxg5 {[%emt 0:00:30]} c4 {[%emt 0:00:30]} 31. Qe2 {[%emt 0:00:30]} g3 {[%emt 0:00:30]} 32. fxg3 {[%emt 0:00:30]} Qb6+ {[%emt 0:00:30]} 33. Kg2 {[%emt 0:00:30]} Raf8 {[%emt 0:00:30]} 34. Rdd4 {[%emt 0:00:30]} Rd8 {[%emt 0:00:30]} 35. Rd6 {[%emt 0:00:30]} Rxd6 {[%emt 0:00:30]} 36. exd6+ {[%emt 0:00:30]} Kd8 {[%emt 0:00:30]} 37. Qf3 {[%emt 0:00:30]} Qxd6 {[%emt 0:00:30]} 38. Re1 {[%emt 0:00:30]} Kc7 {[%emt 0:00:30]} 39. Qf7+ {[%emt 0:00:30]} 1/2-1/2

[Event "VIII Lorca Open-A 2019"]
[Site "Lorca"]
[Date "2019.12.30"]
[Round "8.2"]
[White "Grigoryan, Karen H."]
[Black "Krysa, Leandro"]
[Result "1/2-1/2"]
[ECO "D31"]
[WhiteElo "2621"]
[BlackElo "2527"]
[Annotator "ChessBase"]
[PlyCount "100"]
[EventDate "2019.12.26"]
[EventType "swiss"]
[EventCountry "ESP"]
[SourceTitle "playchess.com"]
[Source "ChessBase"]
[SourceQuality "1"]
[TimeControl "5400+30"]

1. c4 {[%emt 0:00:52]} e6 {[%emt 0:02:44]} 2. d4 {[%emt 0:00:22]} d5 {[%emt 0:00:25]} 3. Nc3 {[%emt 0:00:06]} c6 {[%emt 0:00:09]} 4. e4 {[%emt 0:01:00]} dxe4 {[%emt 0:00:20]} 5. Nxe4 {[%emt 0:00:05]} Bb4+ {[%emt 0:00:10]} 6. Bd2 {[%emt 0:01:04]} Qxd4 {[%emt 0:00:15]} 7. Bxb4 {[%emt 0:00:04]} Qxe4+ {[%emt 0:00:07]} 8. Be2 {[%emt 0:00:05]} a5 {[%emt 0:00:28]} 9. Bc3 {[%emt 0:04:01]} Ne7 {[%emt 0:02:01]} 10. Nf3 {[%emt 0:10:24]} O-O {[%emt 0:02:05]} 11. O-O {[%emt 0:00:14]} f6 {[%emt 0:01:32]} 12. Nd2 {[%emt 0:02:25]} Qf4 {[%emt 0:04:29]} 13. Qb3 {[%emt 0:12:56]} Qc7 {[%emt 0:03:39]} 14. Ne4 {[%emt 0:03:58]} c5 {[%emt 0:04:56]} 15. Rad1 {[%emt 0:05:17]} Nf5 {[%emt 0:18:35]} 16. Bf3 {[%emt 0:13:52]} e5 {[%emt 0:11:18]} 17. Qa3 {[%emt 0:04:59]} Nd4 {[%emt 0:10:02]} 18. Qxc5 {[%emt 0:07:09]} Nxf3+ {[%emt 0:03:41]} 19. gxf3 {[%emt 0:00:05]} Qxc5 {[%emt 0:03:31]} 20. Nxc5 {[%emt 0:00:05]} Na6 {[%emt 0:01:10]} 21. Nd7 {[%emt 0:03:37]} Bxd7 {[%emt 0:01:13]} 22. Rxd7 {[%emt 0:00:07]} Nc5 {[%emt 0:01:20]} 23. Rd5 {[%emt 0:01:32]} Na4 {[%emt 0:03:59]} 24. Rc1 {[%emt 0:03:13]} Rfd8 {[%emt 0:11:35]} 25. Rb5 {[%emt 0:01:39]} b6 {[%emt 0:03:33]} 26. b3 {[%emt 0:01:22]} Nxc3 {[%emt 0:03:43]} 27. Rxc3 {[%emt 0:00:08]} a4 {[%emt 0:01:03]} 28. b4 {[%emt 0:04:42]} Rd6 {[%emt 0:02:02]} 29. c5 {[%emt 0:02:06]} bxc5 {[%emt 0:00:12]} 30. Rcxc5 {[%emt 0:00:36]} a3 {[%emt 0:02:33]} 31. Rb7 {[%emt 0:02:14]} Rd2 {[%emt 0:00:35]} 32. Rcc7 {[%emt 0:00:20]} Rxa2 {[%emt 0:01:11]} 33. Rxg7+ {[%emt 0:00:05]} Kh8 {[%emt 0:00:28]} 34. Rxh7+ {[%emt 0:00:06]} Kg8 {[%emt 0:00:01]} 35. Rbg7+ {[%emt 0:01:36]} Kf8 {[%emt 0:00:03]} 36. Ra7 {[%emt 0:06:31]} Kg8 {[%emt 0:00:40]} 37. Rhb7 {[%emt 0:01:31]} Rxa7 {[%emt 0:00:08]} 38. Rxa7 {[%emt 0:00:03]} Ra1+ {[%emt 0:01:12]} 39. Kg2 {[%emt 0:00:05]} a2 {[%emt 0:00:23]} 40. b5 {[%emt 0:00:36]} Rb1 {[%emt 0:00:32]} 41. Rxa2 {[%emt 0:00:04]} Rxb5 {[%emt 0:00:01]} 42. Ra7 {[%emt 0:00:07]} Rb4 {[%emt 0:00:17]} 43. Kg3 {[%emt 0:00:06]} Rf4 {[%emt 0:00:29]} 44. h4 {[%emt 0:00:41]} Kh8 {[%emt 0:00:35]} 45. Ra3 {[%emt 0:04:27]} Kg7 {[%emt 0:00:15]} 46. Re3 {[%emt 0:00:04]} Ra4 {[%emt 0:00:26]} 47. Re4 {[%emt 0:00:05]} Ra2 {[%emt 0:01:16]} 48. Rg4+ {[%emt 0:00:47]} Kh6 {[%emt 0:00:11]} 49. f4 {[%emt 0:01:25]} Ra3+ {[%emt 0:00:44]} 50. Kg2 {[%emt 0:00:07]} Ra4 {[%emt 0:01:02]} 1/2-1/2